fUSD/lending_fUSD_20240217
["ID","MTS","AMOUNT","RATE_DAILY","PERIOD"]
[314272242,1708139442230,-1000.0,0.000375,2]
[314272243,1708139442238,-180.0,0.00037671,2]
[314272244,1708139442248,-1098.96,0.0003789,2]
[314272245,1708139442257,-676044.9017,0.000379,3]
[314272246,1708139442266,-555.43607178,0.00037959,2]
[314272247,1708139442275,-34855.64527573,0.00037991,2]
[314272248,1708139442283,-2450.63080718,0.00038059,8]
[314272249,1708139442292,-150.0,0.00038131,2]
[314272250,1708139442301,-150.0,0.0003829,2]
[314272251,1708139442310,-150.0,0.00038298,2]
[314272252,1708139442319,-150.0,0.00038331,2]
[314272253,1708139442329,-150.0,0.00038343,2]
[314272254,1708139442337,-2264.55,0.00038352,2]
[314272255,1708139442346,-156.62,0.00038356,2]
[314272256,1708139442356,-200.43430633,0.00038356,2]
[314272257,1708139442365,-719.27,0.00038356,15]
[314272258,1708139442376,-175.21,0.00038356,2]
[314272259,1708139442385,-152.74,0.00038356,2]
[314272260,1708139442394,-150.0,0.00038365,2]
[314272261,1708139442403,-150.0,0.00038376,2]
[314272262,1708139442413,-500.0,0.000384,2]
[314272263,1708139442422,-150.0,0.00038413,2]
[314272265,1708139442431,-150.0,0.00038414,2]
[314272267,1708139442440,-150.0,0.00038416,2]
[314272268,1708139442449,-150.0,0.00038423,2]
[314272269,1708139442457,-150.0,0.00038446,2]
[314272270,1708139442466,-150.0,0.00038452,2]
[314272271,1708139442475,-150.0,0.00038457,2]
[314272272,1708139442484,-150.0,0.00038482,2]
[314272273,1708139442493,-5151.14,0.000385,25]
[314272274,1708139442502,-150.0,0.00038519,2]
[314272275,1708139442510,-6652.28079508,0.0003853,13]
[314272276,1708139442519,-26835.06180863,0.0003853,13]
[314272277,1708139442529,-2785.25608782,0.00038545,12]
[314272278,1708139442538,-588.36650499,0.00038545,11]
[314272279,1708139442547,-150.0,0.00038549,2]
[314272280,1708139442556,-162.0,0.00038556,7]
[314272281,1708139442566,-186.71508576,0.00038606,2]
[314272282,1708139442575,-153.89569785,0.00038606,2]
[314272283,1708139442584,-150.0,0.00038619,2]
[314272284,1708139442593,-150.0,0.00038669,2]
[314272285,1708139442602,-150.0,0.00038673,2]
[314272286,1708139442611,-3127.52225059,0.00038689,2]
[314272287,1708139442621,-150.0,0.00038693,2]
[314272288,1708139442630,-150.0,0.00038698,2]
[314272289,1708139442639,-150.0,0.00038698,2]
[314272290,1708139442648,-150.0,0.000387,2]
[314272291,1708139442657,-150.0,0.00038738,2]
[314272292,1708139442666,-150.0,0.00038775,2]
[314272293,1708139442675,-150.0,0.00038781,2]
[314272294,1708139442684,-150.0,0.00038784,2]
[314272295,1708139442693,-150.0,0.00038806,2]
[314272296,1708139442702,-150.0,0.00038809,2]
[314272297,1708139442711,-150.0,0.0003881,2]
[314272298,1708139442720,-150.0,0.0003881,2]
[314272299,1708139442729,-150.0,0.00038827,2]
[314272300,1708139442738,-150.0,0.00038832,2]
[314272301,1708139442748,-150.0,0.00038832,2]
[314272302,1708139442757,-150.0,0.00038869,2]
[314272303,1708139442766,-150.0,0.00038882,2]
[314272304,1708139442776,-150.0,0.00038884,2]
[314272305,1708139442785,-150.0,0.00038902,2]
[314272306,1708139442795,-150.0,0.00038902,2]
[314272307,1708139442804,-150.0,0.00038902,2]
[314272308,1708139442813,-1501.50555876,0.00038919,2]
[314272309,1708139442822,-150.0,0.00038924,2]
[314272310,1708139442832,-309.4868852,0.00038925,2]
[314272311,1708139442841,-150.0,0.00038928,2]
[314272312,1708139442850,-8375.15878825,0.00038931,12]
[314272313,1708139442860,-300.0,0.00038933,2]
[314272314,1708139442869,-1000.0,0.00038939,2]
[314272315,1708139442878,-150.0,0.00038944,2]
[314272316,1708139442887,-150.0,0.00038957,2]
[314272317,1708139442896,-150.0,0.00038977,2]
[314272318,1708139442905,-150.0,0.00038978,2]
[314272319,1708139442915,-25997.55481538,0.0003898,2]
[314272320,1708139442928,-405.42111,0.0003898,2]
[314272321,1708139442937,-150.0,0.00038981,2]
[314272322,1708139442946,-300.0,0.00038988,2]
[314272323,1708139442956,-150.0,0.00038992,2]
[314272324,1708139442965,-1000.0,0.00039,7]
[314272325,1708139442974,-150.0,0.00039002,2]
[314272326,1708139442983,-405.42112,0.0003901,2]
[314272327,1708139442992,-1500.0,0.00039018,2]
[314272328,1708139443002,-150.0,0.00039025,2]
[314272329,1708139443011,-150.0,0.00039043,2]
[314272330,1708139443020,-150.0,0.00039052,2]
[314272331,1708139443029,-150.0,0.00039054,2]
[314272333,1708139443039,-150.0,0.00039055,2]
[314272335,1708139443048,-150.0,0.00039066,2]
[314272336,1708139443057,-150.0,0.00039085,2]
[314272337,1708139443066,-150.0,0.00039087,2]
[314272338,1708139443075,-162.0,0.00039104,7]
[314272339,1708139443084,-150.0,0.00039104,2]
[314272340,1708139443093,-150.0,0.00039104,2]
[314272341,1708139443102,-235.11328442,0.00039124,2]
[314272342,1708139443111,-150.0,0.00039138,2]
[314272343,1708139443120,-150.0,0.00039138,2]
[314272344,1708139443129,-150.0,0.00039151,2]
[314272345,1708139443138,-300.0,0.0003916,2]
[314272346,1708139443147,-300.0,0.00039161,2]
[314272347,1708139443156,-387.40312369,0.00039166,2]
[314272348,1708139443165,-150.0,0.00039175,2]
[314272349,1708139443175,-150.0,0.00039176,2]
[314272350,1708139443184,-300.0,0.00039193,2]
[314272351,1708139443193,-150.0,0.00039209,2]
[314272352,1708139443201,-1500.0,0.00039223,2]
[314272353,1708139443210,-478.71,0.0003926,2]
[314272354,1708139443219,-156.62,0.00039269,2]
[314272355,1708139443228,-155.0,0.00039272,2]
[314272356,1708139443237,-1000.0,0.00039272,2]
[314272357,1708139443247,-150.0,0.00039272,2]
[314272358,1708139443256,-150.0,0.00039285,2]
[314272359,1708139443265,-150.0,0.00039287,2]
[314272360,1708139443274,-1500.0,0.00039289,2]
[314272361,1708139443283,-150.0,0.00039294,2]
[314272362,1708139443292,-150.0,0.00039296,2]
[314272363,1708139443301,-405.42111,0.0003932,2]
[314272364,1708139443310,-304.55780869,0.00039336,2]
[314272365,1708139443319,-150.0,0.00039345,2]
[314272366,1708139443327,-150.0,0.00039351,2]
[314272367,1708139443336,-300.0,0.00039351,2]
[314272368,1708139443346,-151.67358367,0.00039366,2]
[314272369,1708139443355,-150.0,0.00039366,2]
[314272370,1708139443363,-2000.0,0.00039372,2]
[314272371,1708139443372,-200.0,0.00039372,2]
[314272372,1708139443381,-2000.0,0.00039372,2]
[314272373,1708139443389,-200.0,0.00039372,2]
[314272374,1708139443398,-200.0,0.00039372,2]
[314272375,1708139443407,-200.0,0.00039373,10]
[314272376,1708139443415,-150.0,0.00039374,2]
[314272377,1708139443424,-150.0,0.00039394,2]
[314272378,1708139443433,-150.0,0.00039397,2]
[314272379,1708139443442,-300.0,0.00039405,2]
[314272380,1708139443450,-150.0,0.00039407,2]
[314272381,1708139443460,-1500.0,0.00039409,2]
[314272382,1708139443471,-150.0,0.0003942,2]
[314272383,1708139443509,-150.0,0.00039425,2]
[314272384,1708139443518,-150.0,0.00039427,2]
[314272385,1708139443527,-150.0,0.00039432,2]
[314272386,1708139443536,-300.0,0.00039438,2]
[314272387,1708139443545,-1500.0,0.00039439,2]
[314272388,1708139443554,-150.0,0.00039442,2]
[314272389,1708139443563,-300.0,0.00039447,2]
[314272390,1708139443573,-300.0,0.00039447,2]
[314272391,1708139443582,-151.021788,0.00039448,38]
[314272392,1708139443591,-151.021788,0.00039448,38]
[314272393,1708139443601,-151.021788,0.00039448,38]
[314272394,1708139443610,-150.0,0.0003945,2]
[314272395,1708139443619,-183.36158131,0.00039479,2]
[314272396,1708139443628,-342.12752312,0.00039479,2]
[314272397,1708139443637,-150.0,0.00039485,2]
[314272398,1708139443646,-300.0,0.00039505,2]
[314272399,1708139443655,-150.0,0.00039511,2]
[314272400,1708139443664,-150.0,0.00039513,2]
[314272401,1708139443673,-150.0,0.00039515,2]
[314272402,1708139443682,-300.0,0.00039518,2]
[314272403,1708139443691,-1501.50555876,0.00039529,2]
[314272404,1708139443700,-200.0,0.00039531,15]
[314272405,1708139443709,-200.0,0.00039531,20]
[314272406,1708139443718,-150.0,0.00039533,2]
[314272407,1708139443727,-1500.0,0.00039534,2]
[314272408,1708139443737,-150.0,0.00039537,2]
[314272409,1708139443747,-150.0,0.00039542,2]
[314272410,1708139443756,-150.0,0.0003955,2]
[314272411,1708139443765,-300.0,0.00039554,2]
[314272412,1708139443775,-150.0,0.00039567,2]
[314272413,1708139443784,-1103.81052363,0.00039574,2]
[314272414,1708139443793,-200.0,0.00039579,10]
[314272415,1708139443802,-200.0,0.00039579,20]
[314272416,1708139443812,-150.0,0.00039579,2]
[314272417,1708139443820,-150.0,0.00039582,2]
[314272418,1708139443829,-150.0,0.00039597,2]
[314272419,1708139443839,-150.0,0.000396,2]
[314272420,1708139443848,-150.0,0.0003961,2]
[314272421,1708139443857,-150.0,0.00039624,2]
[314272422,1708139443866,-1500.0,0.00039625,2]
[314272423,1708139443875,-206.0,0.00039627,12]
[314272424,1708139443884,-2264.55,0.0003963,2]
[314272425,1708139443894,-150.0,0.0003963,2]
[314272426,1708139443903,-150.0,0.00039632,2]
[314272427,1708139443912,-150.0,0.00039633,2]
[314272428,1708139443924,-150.0,0.00039637,2]
[314272429,1708139443933,-405.42112,0.0003964,2]
[314272430,1708139443942,-150.0,0.00039647,2]
[314272431,1708139443951,-1500.0,0.00039647,2]
[314272432,1708139443961,-169.021788,0.00039648,39]
[314272433,1708139443970,-150.0,0.00039648,2]
[314272434,1708139443979,-162.0,0.00039652,7]
[314272435,1708139443988,-150.0,0.00039652,2]
[314272436,1708139443998,-150.0,0.00039653,2]
[314272437,1708139444010,-1500.0,0.00039664,2]
[314272438,1708139444018,-150.0,0.00039664,2]
[314272439,1708139444027,-156.36021459,0.00039668,2]
[314272440,1708139444038,-150.0,0.00039668,2]
[314272441,1708139444046,-22955.24366983,0.00039671,2]
[314272442,1708139444055,-150.0,0.00039674,2]
[314272443,1708139444064,-150.0,0.00039678,2]
[314272444,1708139444073,-150.0,0.00039682,2]
[314272445,1708139444082,-2956.427856,0.000397,2]
[314272446,1708139444091,-470.65541827,0.000397,4]
[314272447,1708139444100,-346.5198416,0.00039702,12]
[314272448,1708139444110,-150.0,0.00039727,2]
[314272449,1708139444119,-150.0,0.00039736,2]
[314272450,1708139444129,-152.31,0.00039739,2]
[314272451,1708139444138,-150.0,0.00039741,2]
[314272452,1708139444147,-151.021788,0.00039748,39]
[314272453,1708139444156,-151.021788,0.00039748,39]
[314272454,1708139444165,-151.021788,0.00039748,39]
[314272455,1708139444175,-151.021788,0.00039748,39]
[314272456,1708139444184,-2000.0,0.00039766,2]
[314272457,1708139444195,-200.0,0.00039766,2]
[314272458,1708139444204,-2000.0,0.00039766,2]
[314272459,1708139444213,-200.0,0.00039766,2]
[314272460,1708139444222,-150.0,0.00039768,2]
[314272461,1708139444230,-1500.0,0.00039774,2]
[314272462,1708139444239,-150.0,0.00039779,2]
[314272463,1708139444248,-150.0,0.00039781,2]
[314272464,1708139444258,-150.0,0.00039785,2]
[314272465,1708139444267,-150.0,0.00039786,2]
[314272466,1708139444276,-150.0,0.00039791,2]
[314272467,1708139444285,-150.0,0.00039793,2]
[314272468,1708139444294,-48028.82701657,0.00039798,2]
[314272469,1708139444303,-1000.0,0.00039799,5]
[314272470,1708139444312,-1000.0,0.000398,2]
[314272471,1708139444321,-403.58,0.000398,2]
[314272472,1708139444330,-150.0,0.00039813,2]
[314272473,1708139444338,-150.0,0.0003982,2]
[314272474,1708139444347,-1500.0,0.00039825,2]
[314272475,1708139444357,-150.0,0.00039832,2]
[314272476,1708139444365,-1500.0,0.00039835,2]
[314272477,1708139444375,-150.0,0.00039843,2]
[314272478,1708139444384,-150.0,0.00039859,2]
[314272479,1708139444393,-465.34,0.00039869,10]
[314272480,1708139444402,-32665.2836308,0.00039879,40]
[314272481,1708139444411,-21803.87955686,0.0003988,2]
[314272482,1708139444420,-1000.0,0.0003988,5]
[314272483,1708139444429,-1002.28872693,0.00039889,5]
[314272484,1708139444438,-1537.6374187,0.00039889,2]
[314272485,1708139444447,-47611.2195627,0.00039889,2]
[314272486,1708139444456,-200.0,0.0003989,7]
[314272487,1708139444465,-200.0,0.0003989,7]
[314272488,1708139444474,-200.0,0.0003989,7]
[314272489,1708139444483,-1270.47860103,0.00039891,2]
[314272490,1708139444492,-150.0,0.00039896,2]
[314272491,1708139444502,-150.0,0.00039897,2]
[314272492,1708139444510,-160686.70568881,0.00039897,2]
[314272493,1708139444625,-150.01,0.00039898,2]
[314272494,1708139444635,-3317.68767406,0.00039898,2]
[314272495,1708139444644,-509.57004619,0.00039898,2]
[314272496,1708139444653,-1002.6138,0.00039899,2]
[314272497,1708139444662,-669.7655843,0.00039899,2]
[314272498,1708139444672,-214.72550425,0.00039899,2]
[314272499,1708139444681,-254.45312673,0.00039899,2]
[314272500,1708139444690,-214.72550425,0.00039899,2]
[314272501,1708139444699,-254.45312673,0.00039899,2]
[314272502,1708139444708,-214.72550425,0.00039899,2]
[314272503,1708139444717,-254.45312673,0.00039899,2]
[314272504,1708139444726,-214.72550425,0.00039899,2]
[314272505,1708139444735,-254.45312673,0.00039899,2]
[314272506,1708139444745,-2440457.27162647,0.000399,3]
[314272507,1708139444755,-969276.60537216,0.000399,3]
[314272508,1708139444764,-431.36195186,0.000399,10]
[314272509,1708139444774,-38645.69711224,0.000399,3]
[314272510,1708139444783,-18211.22257101,0.000399,2]
[314272511,1708139444792,-289.3053774,0.00039916,2]
[314272512,1708139444802,-405.42111,0.0003995,2]
[314272513,1708139444811,-4199.2631088,0.0003997,2]
[314272514,1708139444821,-197.11653375,0.00039999,31]
[314272515,1708139444830,-500.0,0.00039999,31]
[314272516,1708139444839,-258.46685872,0.00039999,31]
[314272517,1708139444848,-208.79475264,0.00039999,31]
[314272518,1708139444859,-500.0,0.00039999,31]
[314272519,1708139444868,-568.63667312,0.00039999,31]
[314272520,1708139444877,-250.0,0.0004,30]
[314272521,1708139444886,-1063.22242919,0.0004,4]
[314272522,1708139444895,-548.92039553,0.0004,6]
[314272523,1708139444904,-162.39448833,0.0004,7]
[314272524,1708139444913,-14283.0,0.0004,7]
[314272525,1708139444925,-865.76443847,0.0004,4]
[314272526,1708139444934,-159.61444784,0.0004,30]
[314272527,1708139444943,-571.62122995,0.0004,2]
[314272528,1708139444952,-1212.91218193,0.0004,4]
[314272529,1708139444962,-20000.0,0.0004,3]
[314272530,1708139444971,-500.0,0.0004,5]
[314272531,1708139444980,-58699.15160318,0.0004,30]
[314272532,1708139444989,-266.16367082,0.0004,12]
[314272533,1708139444999,-7341.08130703,0.0004,7]
[314272534,1708139445009,-11189.94,0.0004,2]
[314272535,1708139445019,-262.62270052,0.0004002,2]
[314272536,1708139445028,-5000.0,0.00040028,4]
[314272537,1708139445037,-500.0,0.0004003,5]
[314272538,1708139445046,-200.0,0.00040103,2]
[314272539,1708139445055,-152.31,0.00040145,2]
[314272540,1708139445064,-1098.96,0.00040154,2]
[314272541,1708139445073,-2000.0,0.00040163,2]
[314272542,1708139445082,-200.0,0.00040163,2]
[314272543,1708139445091,-2000.0,0.00040163,2]
[314272544,1708139445100,-200.0,0.00040163,2]
[314272545,1708139445109,-156.62,0.00040183,2]
[314272546,1708139445119,-162.0,0.000402,7]
[314272547,1708139445129,-405.42112,0.0004026,3]
[314272548,1708139445138,-3127.52225059,0.00040268,5]
[314272549,1708139445147,-500.0,0.000403,5]
[314272550,1708139445156,-1000.0,0.000403,2]
[314272551,1708139445165,-19939.346,0.00040316,2]
[314272552,1708139445174,-8199.896,0.00040316,2]
[314272553,1708139445183,-7453.4,0.00040316,2]
[314272554,1708139445192,-4243.428,0.00040316,2]
[314272555,1708139445201,-38388.357,0.00040316,2]
[314272556,1708139445210,-2314.781,0.00040316,2]
[314272557,1708139445218,-2940.444,0.00040316,2]
[314272558,1708139445227,-1080.56,0.00040316,2]
[314272559,1708139445236,-192.98438278,0.00040534,14]
[314272560,1708139445246,-8375.15878825,0.00040534,14]
[314272561,1708139445255,-2000.0,0.00040565,2]
[314272562,1708139445264,-200.0,0.00040565,2]
[314272563,1708139445274,-2000.0,0.00040565,2]
[314272564,1708139445282,-200.0,0.00040565,2]
[314272565,1708139445291,-2450.63080718,0.00040602,9]
[314272566,1708139445300,-1456.45684561,0.00040602,2]
[314272567,1708139445309,-707.35777953,0.00040602,32]
[314272568,1708139445318,-1940.53998289,0.00040602,2]
[314272569,1708139445328,-10979.88723697,0.00040702,2]
[314272570,1708139445337,-158.04578453,0.00040702,2]
[314272571,1708139445346,-203.0476169,0.00040702,2]
[314272572,1708139445355,-1147.82957012,0.00040702,2]
[314272573,1708139445364,-154.999999,0.00040702,2]
[314272574,1708139445373,-5295.31076023,0.00040702,4]
[314272575,1708139445382,-5481.03,0.00040702,13]
[314272576,1708139445391,-1584.07438171,0.00040702,2]
[314272578,1708139445400,-155.92647831,0.00040702,2]
[314272579,1708139445409,-4545.82505603,0.00040702,2]
[314272580,1708139445418,-702.01654297,0.00040702,2]
[314272581,1708139445427,-169.10391056,0.00040702,120]
[314272583,1708139445436,-155.0,0.00040702,2]
[314272584,1708139445444,-500.0,0.00040702,120]
[314272585,1708139445453,-1340000.0,0.00040702,30]
[314272586,1708139445462,-1528.574,0.00040702,7]
[314272587,1708139445471,-153.48458053,0.00040702,119]
[314272588,1708139445480,-155.80632865,0.00040702,10]
[314272589,1708139445489,-189.43353779,0.00040702,6]
[314272590,1708139445498,-20009.47953652,0.00040702,2]
[314272591,1708139445507,-199.02203505,0.00040702,120]
[314272592,1708139445516,-275.15622716,0.00040702,30]
[314272593,1708139445525,-216.5760994,0.00040702,30]
[314272594,1708139445534,-159.35404023,0.00040702,30]
[314272595,1708139445543,-201.59239623,0.00040702,120]
[314272596,1708139445552,-155.65235644,0.00040702,120]
[314272597,1708139445560,-306.59704943,0.00040702,120]
[314272598,1708139445570,-393.8579256,0.00040702,7]
[314272599,1708139445579,-163.94316074,0.00040702,120]
[314272600,1708139445588,-151.34673705,0.00040702,30]
[314272601,1708139445597,-158.00946671,0.00040702,60]
[314272602,1708139445606,-199.26055783,0.00040702,30]
[314272603,1708139445615,-472.09255615,0.00040702,30]
[314272604,1708139445623,-230.0,0.00040702,120]
[314272605,1708139445632,-150.0,0.00040702,100]
[314272606,1708139445641,-68192.0,0.00040702,4]
[314272607,1708139445651,-150.0,0.00040702,30]
[314272608,1708139445660,-1297.10873261,0.00040702,2]
[314272609,1708139445669,-478.71,0.00040733,2]
[314272610,1708139445678,-162.0,0.00040748,7]
[314272611,1708139445687,-153.89569785,0.0004085,9]
[314272612,1708139445696,-251.47207291,0.0004088,30]
[314272613,1708139445705,-12781.17418119,0.00040883,3]
[314272614,1708139445714,-200.0,0.000409,2]
[314272615,1708139445723,-429.35053285,0.000409,2]
[314272616,1708139445731,-2000.0,0.00040971,2]
[314272617,1708139445740,-200.0,0.00040971,2]
[314272618,1708139445750,-200.0,0.00040971,2]
[314272619,1708139445760,-2700.0,0.00041,3]
[314272620,1708139445769,-20000.0,0.00041,6]
[314272621,1708139445778,-238.19867172,0.00041,30]
[314272622,1708139445787,-800.0,0.00041,2]
[314272623,1708139445796,-166.0,0.00041,2]
[314272624,1708139445805,-20000.0,0.00041,3]
[314272625,1708139445814,-312.15551561,0.00041,120]
[314272626,1708139445823,-1000.0,0.00041,30]
[314272627,1708139445832,-34855.64527573,0.00041029,3]
[314272628,1708139445841,-2504.26815191,0.00041095,2]
[314272629,1708139445851,-327.0875,0.00041095,2]
[314272630,1708139445860,-750.0,0.00041095,2]
[314272631,1708139445869,-156.62,0.00041096,2]
[314272632,1708139445878,-1880.0,0.000411,2]
[314272633,1708139445887,-663.59417096,0.000411,2]
[314272634,1708139445896,-1505.0,0.000411,2]
[314272635,1708139445905,-163.70744045,0.000411,7]
[314272636,1708139445915,-163.70744045,0.000411,7]
[314272637,1708139445928,-163.70744045,0.000411,7]
[314272638,1708139445938,-163.70744045,0.000411,7]
[314272639,1708139445947,-163.7,0.000411,7]
[314272640,1708139445956,-167.42827692,0.000411,7]
[314272641,1708139445966,-167.42,0.000411,7]
[314272642,1708139445975,-176.24917744,0.000411,7]
[314272643,1708139445984,-176.24917744,0.000411,7]
[314272644,1708139445993,-176.24,0.000411,7]
[314272645,1708139446004,-152.68550756,0.000411,7]
[314272646,1708139446014,-152.68550756,0.000411,7]
[314272647,1708139446023,-152.68550756,0.000411,7]
[314272648,1708139446032,-152.68,0.000411,7]
[314272649,1708139446041,-198.82261793,0.000411,7]
[314272650,1708139446050,-198.82261793,0.000411,7]
[314272651,1708139446060,-198.82,0.000411,7]
[314272652,1708139446069,-1000.0,0.00041151,2]
[314272653,1708139446078,-162.0,0.00041296,7]
[314272654,1708139446087,-154.05,0.000416,4]
[314272655,1708139446097,-154.05,0.000416,4]
[314272656,1708139446106,-154.05,0.000416,4]
[314272657,1708139446115,-154.05,0.000416,4]
[314272658,1708139446124,-154.05,0.000416,4]
[314272659,1708139446134,-154.05,0.000416,4]
[314272660,1708139446143,-154.05,0.000416,4]
[314272661,1708139446153,-175.21,0.00041781,2]
[314272662,1708139446163,-162.0,0.00041844,7]
[314272663,1708139446172,-3127.52225059,0.00041847,5]
[314272664,1708139446181,-206.0,0.00041891,17]
[314272665,1708139446190,-2041.77735662,0.000419,2]
[314272666,1708139446199,-231.21,0.0004191,61]
[314272667,1708139446208,-173.51,0.0004191,61]
[314272668,1708139446217,-654.175,0.00041917,7]
[314272669,1708139446226,-447.41497558,0.00042,4]
[314272670,1708139446235,-41670.24892265,0.00042,5]
[314272671,1708139446245,-388.46952824,0.00042,7]
[314272672,1708139446254,-250.0,0.00042,30]
[314272673,1708139446263,-338.5789,0.00042,59]
[314272674,1708139446272,-358.01082178,0.00042,43]
[314272675,1708139446281,-316.03132048,0.00042,2]
[314272676,1708139446290,-8722.5118314,0.00042,2]
[314272677,1708139446299,-1231.24686331,0.00042,120]
[314272678,1708139446308,-84182.14326852,0.00042,4]
[314272679,1708139446317,-1000.0,0.00042,2]
[314272680,1708139446326,-7464.35666775,0.00042,2]
[314272681,1708139446335,-4443.0,0.00042,2]
[314272682,1708139446344,-10051.0,0.00042,2]
[314272683,1708139446353,-543.87368819,0.00042,30]
[314272684,1708139446362,-200.0,0.00042,2]
[314272685,1708139446371,-1297.63261035,0.0004201,2]
[314272686,1708139446380,-150.0,0.00042037,2]
[314272687,1708139446389,-180.0,0.00042037,2]
[314272688,1708139446398,-151.302,0.00042037,2]
[314272689,1708139446407,-151.561,0.00042037,2]
[314272690,1708139446416,-180.537,0.00042037,2]
[314272691,1708139446425,-164.113,0.00042037,2]
[314272692,1708139446435,-150.0,0.00042037,2]
[314272693,1708139446444,-181.935,0.00042037,2]
[314272694,1708139446452,-206.228,0.00042037,2]
[314272695,1708139446462,-170.639,0.00042037,2]
[314272696,1708139446471,-165.914,0.00042037,2]
[314272697,1708139446480,-211.956,0.00042037,2]
[314272698,1708139446489,-250.0,0.00042037,2]
[314272699,1708139446498,-150.281,0.00042037,2]
[314272700,1708139446509,-150.147,0.00042037,2]
[314272701,1708139446518,-1865.0,0.00042037,2]
[314272702,1708139446527,-2843.541,0.00042037,2]
[314272703,1708139446537,-1378.211,0.00042037,2]
[314272704,1708139446546,-543.505,0.00042037,2]
[314272705,1708139446555,-456.388,0.00042037,2]
[314272706,1708139446564,-845.0,0.00042037,2]
[314272707,1708139446574,-711.472,0.00042037,2]
[314272708,1708139446583,-957.618,0.00042037,2]
[314272709,1708139446593,-599.0,0.00042037,2]
[314272710,1708139446602,-236.202,0.00042037,2]
[314272711,1708139446611,-1255.0,0.00042037,2]
[314272712,1708139446620,-1231.0,0.00042037,2]
[314272713,1708139446629,-1951.376,0.00042037,2]
[314272714,1708139446639,-971.09,0.00042037,2]
[314272715,1708139446648,-1022.794,0.00042037,2]
[314272716,1708139446657,-245.51,0.00042037,2]
[314272717,1708139446666,-446.115,0.00042037,2]
[314272718,1708139446675,-421.667,0.00042037,2]
[314272719,1708139446684,-151.039,0.00042037,2]
[314272720,1708139446693,-1138.0,0.00042037,2]
[314272721,1708139446702,-434.032,0.00042037,2]
[314272722,1708139446711,-2871.0,0.00042037,2]
[314272723,1708139446720,-156.692,0.00042037,2]
[314272724,1708139446729,-399.937,0.00042037,2]
[314272725,1708139446739,-719.27,0.00042092,15]
[314272726,1708139446750,-152.74,0.00042192,2]
[314272727,1708139446760,-478.71,0.00042205,2]
[314272728,1708139446872,-162.0,0.00042392,7]
[314272729,1708139446882,-1098.96,0.00042418,2]
[314272730,1708139446892,-750.0,0.00042465,3]
[314272731,1708139446901,-156.88,0.000427,9]
[314272732,1708139446910,-981.2625,0.00042739,7]
[314272733,1708139446919,-264348.20538451,0.00042819,5]
[314272734,1708139446933,-3444.48866904,0.00042888,32]
[314272735,1708139446942,-730.0589355,0.00042897,10]
[314272736,1708139446951,-898.0,0.000429,30]
[314272737,1708139446961,-347.0,0.000429,30]
[314272738,1708139446970,-922.3,0.000429,30]
[314272739,1708139446979,-162.0,0.0004294,7]
[314272740,1708139446989,-330750.26468739,0.00042998,3]
[314272741,1708139446997,-420.37567499,0.00042998,2]
[314272742,1708139447009,-484.08793418,0.00042998,2]
[314272743,1708139447018,-563.84079632,0.00043,4]
[314272744,1708139447027,-1000.0,0.00043,2]
[314272745,1708139447037,-153.89569785,0.00043094,18]
[314272746,1708139447046,-19853.0,0.00043316,2]
[314272747,1708139447055,-8166.0,0.00043316,2]